Cogmind - Beta 14 *** ADVENTURER MODE // 2024.08.18 @ 03:41:00 Player: AnotherZach Result: Destroyed by G-73 Enforcer with Heavy Laser Performance ------------- Evolutions (9) 4500 Regions Visited (24) 4800 Robots Destroyed (554) 2770 Value Destroyed (27696) 27696 Prototype IDs (64) 1280 Alien Tech Used (6) 1200 Bonus (23687) 23687 TOTAL SCORE: 65933 Bonus ------- Triggered High Security 1500 High Alert Combat Kills 10087 Follower Combat Kills 6510 Entered DSFs 500 Delivered SUBCON Basin 2000 Registered with UFD 300 Met Warlord at Base 500 MAIN.C Attacked Warlord 500 Warlord Defense Kills 2796 Built Enhanced Grunts 300 A7 Reached Mainframe 300 Met R17 at Cetus 500 Met R17 at Research 2000 Scanned by Researcher 500 Friendly Fire -4606 Cogmind --------- Core Integrity 0/1600 Matter 21/300 Energy 200/850 System Corruption 5% Temperature Cool (0) Movement Rolling (130) Ox6 Location -1/Access Parts ------- > --- POWER (4) -------- Quantum Reactor > --- PROPULSION (7) --- Centrium Leg Overtuned Huge Scrapsphere > --- UTILITY (10) ----- 2N-1CE's Frost Array Huge Storage Unit Advanced Energy Well Spectral Analyzer Experimental Core Analyzer > --- WEAPON (4) ------- Potential Cannon > --- INVENTORY (25) --- Flexi-carbon Leg Improved Matter Compressor (3) Advanced Melee Analysis Suite Matter Filter Point Defense Array Point Defense Array Dimensional Node Initializer Subatomic Replicator Vortex Rail (2) Cooled Nova Cannon Helical Railgun Core Stripper Power Sword Peak State ------------ > --- POWER ------------ Light Particle Reactor Quantum Reactor Light Quantum Reactor Light Quantum Reactor > --- PROPULSION ------- Compact Wheel Overtuned Huge Scrapsphere Overtuned Huge Scrapsphere Overtuned Huge Scrapsphere > --- UTILITY ---------- Scrap Suit 2N-1CE's Frost Array Huge Storage Unit Advanced Energy Well Spectral Analyzer Experimental Core Analyzer Matter Filter Phase Armor > --- WEAPON ----------- Overtuned Quantum Rifle Heavy Dispersion Rifle Cooled Nova Cannon Overtuned Railgun > --- INVENTORY -------- Improved Matter Compressor Matter Filter Damper Plating Improved Focal Shield Improved Focal Shield High-powered Tractor Beam Dimensional Node Initializer Transdimensional Reconstructor High-powered Transdimensional Reconstructor High-powered Transdimensional Reconstructor Subatomic Replicator Vortex Rail Potential Cannon Overtuned Railgun Helical Railgun Helical Railgun Heavy Shock Bomb Launcher Micro-nuke Launcher Point Singularity Launcher Core Stripper [Rating: 210] Favorites ----------- Power Improved Ion Engine Engine Improved Ion Engine Power Core Reinforced Fission Core Reactor Light Antimatter Reactor Propulsion Overtuned Huge Scrapsphere Treads Light Treads Leg Carbon-fiber Leg Wheel Overtuned Huge Scrapsphere Flight Unit Improved Surge Thruster Utility Huge Storage Unit Device Scrap Suit Storage Huge Storage Unit Processor Tech Extrapolator Hackware Hacking Suite Protection Light Armor Plating Artifact Phase Armor Weapon Battle Rifle Energy Gun Enhanced Force Rifle Energy Cannon Cooled Nova Cannon Ballistic Gun Battle Rifle Ballistic Cannon Battle Cannon Launcher Rocket Array Special Weapon Junk Cannon Impact Weapon Maul Slashing Weapon Phasing Sabre Piercing Weapon Heavy Pick Build | -11 -10 -10 -10 -9 -9 -6 -6 -6 -5 -5 -5 -5 -4 -4 -4 -4 -4 -4 -3 -3 -3 -2 -2 -1 ------- Run | Yrd Mat Min Sub Rec Scr Fac Ext Cet Fac Was Fac DSF Fac Was Fac Upp Upp War Pro Res Tes Res Qua Acc Slots Evolved 18 | . . . . . . 8 . . 2 . . . 2 . . . . . . 2 . 2 . 2 Power 3 | . . . . . . . . . 1 . . . . . . . . . . 1 . . . 1 Propulsion 5 | . . . . . . 4 . . . . . . . . . . . . . . . . . 1 Utility 8 | . . . . . . 4 . . . . . . 2 . . . . . . 1 . 1 . . Weapon 2 | . . . . . . . . . 1 . . . . . . . . . . . . 1 . . Parts Attached 588 | 6 19 6 17 9 15 89 20 20 54 13 . 8 50 15 33 11 6 17 8 37 54 8 27 46 Power 70 | 1 3 . 2 1 1 6 2 2 4 1 . 1 8 2 4 1 2 1 . 8 6 2 5 7 Engine 14 | 1 3 . 2 1 1 4 1 . . . . . 1 . . . . . . . . . . . Core 8 | . . . . . . 2 1 . 2 . . 1 2 . . . . . . . . . . . Reactor 48 | . . . . . . . . 2 2 1 . . 5 2 4 1 2 1 . 8 6 2 5 7 Propulsion 131 | 2 9 3 5 . 3 25 11 1 15 . . 4 17 3 6 1 1 1 . 5 3 . 2 14 Treads 38 | . 9 . 3 . 2 9 . 1 3 . . . . 3 2 1 . 1 . 2 2 . . . Leg 65 | . . . 2 . . 11 11 . 9 . . 1 17 . . . . . . 1 1 . 1 11 Wheel 25 | 2 . 3 . . 1 5 . . 2 . . 1 . . 4 . 1 . . 2 . . 1 3 Hover . | . . . . . . . . . . . . . . . . . . . . . . . . . Flight 3 | . . . . . . . . . 1 . . 2 . . . . . . . . . . . . Utility 206 | 1 5 2 3 2 2 26 4 9 19 6 . 1 17 6 13 5 2 9 4 16 27 4 11 12 Device 110 | . . . 1 1 1 14 2 6 3 4 . . 4 4 10 4 1 6 4 8 19 4 6 8 Storage 21 | 1 2 2 1 . 1 2 . 1 1 . . 1 1 . . . . . . 2 2 . 3 1 Processor 21 | . . . . 1 . 1 . . 5 1 . . 3 . . 1 1 3 . 2 1 . 1 1 Hackware 18 | . . . . . . 3 2 . 7 . . . 4 . 2 . . . . . . . . . Protection 35 | . 3 . 1 . . 6 . 2 3 1 . . 5 2 1 . . . . 4 5 . . 2 Artifact 1 | . . . . . . . . . . . . . . . . . . . . . . . 1 . Weapon 181 | 2 2 1 7 6 9 32 3 8 16 6 . 2 8 4 10 4 1 6 4 8 18 2 9 13 Energy Gun 31 | 1 1 . . 1 . 7 1 2 . . . . 4 1 2 . . 1 1 2 3 . 3 1 Energy Cannon 9 | . . . . . . . . 1 1 . . . . . . . . . . . 1 1 2 3 Ballistic Gun 64 | 1 1 . 5 1 3 11 2 4 5 . . . 3 2 5 2 . 1 2 3 8 . 1 4 Ballistic Cannon 10 | . . . 2 . . . . . 1 1 . 1 . . . . . 2 . 2 1 . . . Launcher 35 | . . . . 1 1 5 . . 6 4 . 1 . . 3 1 . 1 . 1 4 1 2 4 Special Weapon 20 | . . 1 . . 4 9 . 1 . 1 . . . . . . . 1 1 . 1 . 1 . Impact Weapon 4 | . . . . 3 . . . . . . . . . . . . . . . . . . . 1 Slashing Weapon 6 | . . . . . 1 . . . 3 . . . . . . 1 1 . . . . . . . Piercing Weapon 2 | . . . . . . . . . . . . . 1 1 . . . . . . . . . . Special Melee Weapon . | . . . . . . . . . . . . . . . . . . . . . . . . . Unidentified Prototypes 42 | . . . . . 1 . . 10 3 . . . 2 . . 1 . 8 . 2 8 . 3 4 Corrupted Parts 2 | . . . . . . 2 . . . . . . . . . . . . . . . . . . System Corruption 3 | . . . . . . 3 . . . . . . . . . . . . . . . . . . Parts Lost 95 | . . . 4 . . 6 1 . 15 2 . 3 5 1 1 2 2 . . 8 3 2 8 32 Power 21 | . . . . . . . 1 . 3 . . 2 1 1 1 1 . . . 2 . . 3 6 Propulsion 27 | . . . 3 . . 3 . . 4 . . 1 3 . . . 1 . . 1 . . 1 10 Utility 30 | . . . 1 . . 2 . . 5 . . . 1 . . 1 1 . . 2 2 1 3 11 Weapon 17 | . . . . . . 1 . . 3 2 . . . . . . . . . 3 1 1 1 5 Highest Loss Streak 15 | . . . 2 . . 3 1 . 6 2 . 2 2 1 1 2 1 . . 3 2 2 6 15 To Critical Strikes 3 | . . . 1 . . . . . 1 . . . 1 . . . . . . . . . . . Average Slot Usage (%) 87 | . 92 100 99 98 81 94 99 92 86 66 . 70 95 73 70 71 74 74 73 73 78 81 79 77 Engine 6 | . 13 14 13 14 13 5 1 . . . . . 1 . . . . . . . . . . . Reactor 4 | . . . . . . . . 5 8 4 . 3 4 9 9 6 9 6 5 10 13 13 11 14 Treads 8 | . 12 15 25 . 1 15 . 4 7 . . . . 12 11 4 . 3 5 1 3 4 . . Leg 10 | . . . . 28 14 18 40 29 13 . . 1 27 5 . . . . . . . . . 10 Wheel 5 | . 14 12 1 . 5 5 . . 3 11 . 11 1 . 3 10 14 11 10 11 9 8 11 7 Device 7 | . . . . 3 4 12 1 6 4 13 . 12 13 8 10 17 18 16 15 10 12 16 14 13 Storage 7 | . 14 14 14 14 8 6 6 6 5 2 . 4 5 5 5 5 5 5 5 4 4 4 4 6 Processor 8 | . . . . 10 14 10 13 9 10 5 . 5 7 3 . 4 7 13 15 16 16 13 15 8 Hackware 2 | . . . . . . 3 14 10 5 . . . 7 5 9 5 2 . . . . . . . Protection 4 | . 8 14 13 . . 3 3 4 2 5 . 5 4 4 3 . . . . 2 2 4 . . Energy Gun 3 | . 13 14 . 1 . 4 4 4 2 . . . 7 9 5 . . . 3 1 . 4 6 4 Ballistic Gun 9 | . 13 13 20 16 7 4 7 5 6 4 . . 2 4 7 10 10 9 10 7 9 7 5 3 Impact Weapon 1 | . . . . 8 7 . . . . . . . . . . . . . . . . . . . Peak Build Rating 210 | 6 8 9 39 39 35 77 80 103 135 109 92 105 124 124 132 124 114 147 148 166 161 178 200 210 Average Rating 78 | 4 6 8 22 30 24 65 71 92 111 90 92 94 111 120 124 111 112 129 145 146 152 176 176 184 On Entrance 92 | . 6 8 9 39 30 34 69 70 103 109 92 92 98 119 124 117 107 114 146 143 149 158 178 200 Naked Turns . | . . . . . . . . . . . . . . . . . . . . . . . . . Heaviest Build 235 | 14 90 90 93 96 101 110 109 118 152 128 54 137 137 174 181 136 132 165 161 211 172 182 218 235 Greatest Support 210 | 26 40 40 45 45 45 137 115 105 178 56 56 56 154 210 210 60 60 60 40 60 40 40 60 180 Greatest Overweight (x) 10 | . 4 4 9 2 8 6 1 1 3 3 . 2 2 1 3 3 2 4 4 10 4 4 4 10 Average Overweight (x) 1 | . . 1 2 2 1 . . . 2 . . 1 . . 1 2 1 2 3 3 3 4 2 2 Largest Inventory Capacity 25 | 8 25 25 25 25 25 25 25 25 25 25 5 25 25 25 25 25 25 25 25 25 25 25 25 25 Average Capacity 23 | 7 10 16 25 25 17 24 25 25 25 14 5 21 25 25 25 25 25 25 25 25 25 25 25 25 Most Carried 25 | 3 11 18 25 25 25 25 25 25 25 25 5 25 25 25 25 25 25 25 25 25 25 25 25 25 Average Carried 21 | 1 7 12 24 21 15 23 22 23 24 9 5 15 24 24 24 24 23 24 24 22 24 23 23 23 Final Capacity 25 | 8 25 25 25 25 25 25 25 25 25 5 5 25 25 25 25 25 25 25 25 25 25 25 25 25 Final Carried 25 | 3 11 18 24 25 25 20 23 25 25 5 5 25 25 25 25 25 25 25 25 25 25 23 25 14 Class Distribution -------------------- 24% | Commander-Mutant 23% | Scavenger-Scrapper 21% | Mutant 15% | Scavenger-Mutant 4% | Scavenger-Tank 4% | Scavenger-Gunner Dominant Class ---------------- Mutant | -10/Materials Mutant | -10/Mines Mutant | -10/Subcaves Commander-Mutant | -9/Recycling Commander-Mutant | -9/Scraptown Scavenger-Mutant | -6/Factory Commander-Mutant | -6/Extension Scavenger-Mutant | -6/Cetus Scavenger-Scrapper | -5/Factory Scavenger-Scrapper | -5/Waste Scavenger-Scrapper | -5/Factory Scavenger-Scrapper | -5/DSF Scavenger-Mutant | -4/Factory Scavenger-Tank | -4/Waste Scavenger-Tank | -4/Factory Scavenger-Scrapper | -4/Upper Caves Scavenger-Scrapper | -4/Upper Caves Scavenger-Scrapper | -4/Warlord Scavenger-Scrapper | -3/Proximity Caves Scavenger-Scrapper | -3/Research Scavenger-Scrapper | -3/Testing Scavenger-Scrapper | -2/Research Scavenger-Scrapper | -2/Quarantine Generator-Gunner | -1/Access Resources | -11 -10 -10 -10 -9 -9 -6 -6 -6 -5 -5 -5 -5 -4 -4 -4 -4 -4 -4 -3 -3 -3 -2 -2 -1 ----------- Run | Yrd Mat Min Sub Rec Scr Fac Ext Cet Fac Was Fac DSF Fac Was Fac Upp Upp War Pro Res Tes Res Qua Acc Matter Collected 16856 | 256 214 248 633 219 190 1549 527 357 1136 . . 220 767 314 1194 275 315 934 380 1200 2558 504 1010 1856 Remotely 1215 | . . . . . . . . . . . . . . . . . . . . . . . . 1215 Salvage Created 29532 | . 375 347 651 257 101 3877 349 421 1797 . . 390 1692 1184 3087 602 676 1153 493 1476 4394 1783 1372 3055 Parts 1306 | . 38 28 45 7 10 179 13 38 80 . . 21 79 32 138 14 19 50 37 59 213 77 48 81 Haulers Intercepted 20 | . 2 . . . . 2 . . 3 . . . 1 . 1 . . . . 1 2 3 . 5 Recyclers Shooed 13 | . . . . . . 6 . . . . . . 2 . 1 . . . . 1 . . . 3 Parts Field Recycled . | . . . . . . . . . . . . . . . . . . . . . . . . . Retrieved Matter . | . . . . . . . . . . . . . . . . . . . . . . . . . Parts Self-Destructed 99 | . . . 25 . 6 . . . . . . . . . . 8 15 . 45 . . . . . Prevented 3 | . . . . . . . . . . . . . . . . . . . 3 . . . . . Kills | -11 -10 -10 -10 -9 -9 -6 -6 -6 -5 -5 -5 -5 -4 -4 -4 -4 -4 -4 -3 -3 -3 -2 -2 -1 ------- Run | Yrd Mat Min Sub Rec Scr Fac Ext Cet Fac Was Fac DSF Fac Was Fac Upp Upp War Pro Res Tes Res Qua Acc Combat Hostiles Destroyed 407 | . 9 6 18 . . 43 7 3 30 . . 5 19 4 35 16 11 19 13 17 47 18 20 67 Melee 11 | . . . . . . . . . 6 . . . 4 . . . . . . . . 1 . . Guns 221 | . 9 6 14 . . 28 7 3 7 . . . 15 4 23 5 5 2 12 12 35 13 9 12 Cannons 34 | . . . 4 . . 1 . . . . . 2 . . . . . 3 1 2 2 4 9 6 AOE 126 | . . . . . . 5 . . 17 . . 3 . . 12 11 6 14 . 3 10 . 2 43 Classes Destroyed 31 | . 5 1 2 . . 7 . . 4 . . 2 . 1 1 . 1 3 . 1 2 . . 1 Worker 30 | . 3 . . . . 5 . . 4 . . . 4 . 5 . . . . . 3 2 1 3 Builder 19 | . . . . . . 8 . . 1 . . . 1 . 2 . . . . 2 2 1 1 1 Tunneler 5 | . 1 2 . . . . . . . . . . . . . . . . . 1 . . . 1 Hauler 20 | . 2 . . . . 2 . . 3 . . . 1 . 1 . . . . 1 2 3 . 5 Recycler 28 | . . 3 . . . 8 . . 2 . . . . . 3 . . . . 1 4 2 2 3 Minesweeper 1 | . . . . . . . . . . . . . . . . . 1 . . . . . . . Mechanic 10 | . . . . . . 1 . . 1 . . . 1 . 2 . . . . . 1 . . 4 Operator 7 | . . . . . . 4 . . . . . . 1 . 1 . . . . 1 . . . . Turret 1 | . . . 1 . . . . . . . . . . . . . . . . . . . . . Watcher 22 | . 3 . . . . 7 . 1 2 . . . 2 . 1 . . . . . 3 1 1 1 Swarmer 53 | . 9 6 4 . . 3 3 . 2 . . . . . . 6 1 1 6 . 2 1 5 4 Cutter 2 | . . . . . . . . . . . . 2 . . . . . . . . . . . . Saboteur 4 | . . . . . . . . . 1 . . . . . . . . . . . . 1 . 2 Grunt 141 | . . . . . . 10 1 . 13 . . . 4 . 20 6 7 7 . 10 29 6 5 23 Brawler 24 | . . . . . . . . . 2 . . . 1 . 1 1 2 3 . 1 . 1 2 10 Duelist 21 | . . . . . . . . . 3 . . . 1 . 3 1 . . . . 3 1 1 8 Protector 3 | . . . . . . . . . 1 . . . . . . . . . . . . . . 2 Researcher 1 | . . . . . . . . . . . . . . . . . . . . . 1 . . . Sentry 28 | . . . . . . 8 3 . . . . . 2 . 2 2 1 . . 1 . 4 3 2 Demolisher 1 | . . . . . . . . . . . . . . . . . . 1 . . . . . . Specialist 7 | . . . . . . . . . . . . . . . . . . 1 3 . 3 . . . Hunter 48 | . . . . . . 12 . . 5 . . 2 1 1 4 . . 1 3 4 5 . 2 8 Programmer 47 | . . . . . . 10 . . 3 . . . 10 . 4 . . 3 1 1 4 4 2 5 Heavy 1 | . . . . . . . . . . . . 1 . . . . . . . . . . . . Q-Series 2 | . . . . . . . . . . . . . . . . . . . . . . . . 2 Behemoth 2 | . . . . . . . . . . . . . . . 1 . . . . . . . . 1 Compactor 4 | . . . . . . . . . . . . . . 4 . . . . . . . . . . Cetus Guard 3 | . . . . . . . . 3 . . . . . . . . . . . . . . . . Enhanced Grunt 1 | . . . . . . . . 1 . . . . . . . . . . . . . . . . Investigator 1 | . . . . . . . . . . . . . . . . . . . . . . . . 1 Executioner 2 | . . . . . . . . . . . . . . . . . . 2 . . . . . . Alpha 7 1 | . . . . . . . . . . . . . . . . . . . . . 1 . . . Subdweller 14 | . . . 14 . . . . . . . . . . . . . . . . . . . . . Scrapoid 5 | . . . . . . . . . . . . . . . . . . . . 3 2 . . . Thug 3 | . . . . . . . . . . . . . . . . . . 3 . . . . . . Savage 1 | . . . . . . . . . . . . . . . . . . 1 . . . . . . Best Kill Streak 20 | . 5 3 5 . . 8 4 4 7 . . 2 4 2 9 12 4 10 7 16 9 6 8 20 Combat Bots Only 18 | . 5 3 4 . . 4 4 3 5 . . 2 2 2 7 12 4 10 7 13 8 4 8 18 Max Kills in Single Turn 8 | . 1 2 2 . . 4 2 2 4 . . 2 2 1 4 5 4 8 2 3 3 3 2 5 Gunslinging 1 | . . 1 1 . . . . . . . . . . . 1 . 1 . 1 1 . 1 . . Exploded 7 | . . . . . . 2 . . 4 . . 2 . . 2 5 4 7 . 2 2 . 1 5 Melee 1 | . . . . . . . . . 1 . . . 1 . . . . . . . . 1 . . Uniques/NPCs Destroyed 1 | . . . . . . . . 1 . . . . . . . . . . . . . . . . A7 (-6/Cetus) Combat | -11 -10 -10 -10 -9 -9 -6 -6 -6 -5 -5 -5 -5 -4 -4 -4 -4 -4 -4 -3 -3 -3 -2 -2 -1 -------- Run | Yrd Mat Min Sub Rec Scr Fac Ext Cet Fac Was Fac DSF Fac Was Fac Upp Upp War Pro Res Tes Res Qua Acc Hostile Shots Fired 3763 | . 40 14 144 . . 573 199 8 319 2 . 85 275 9 295 102 35 3 102 434 351 75 164 534 Missed 1162 | . 13 3 52 . . 211 89 4 70 . . 24 91 . 76 37 13 2 29 114 104 22 49 159 Damage Taken 37502 | . 182 66 1254 . . 3483 667 117 4656 60 . 916 2686 336 3567 1138 551 81 549 3083 3118 904 2249 7839 Core 4146 | . 57 . 133 . . 467 66 38 422 . . 73 331 . 128 108 41 15 34 174 178 31 386 1464 Absorbed by Shields 4169 | . . . . . . 40 273 66 . . . . . . . . . 86 574 1352 626 328 235 589 Reduced by Siege Mode 201 | . . . . . . . . . 82 . . . . . 4 . . . . 115 . . . . Redirected to Core 871 | . . . . . . . . . . . . . . . . . . . . . . . 214 657 Redirected to Shielding 39 | . . . . . . . . . . . . . . . . . . . . . . . . 39 Ignored by Resistances 14030 | . 59 22 363 . . 1042 292 51 1286 16 . 259 1070 89 1349 329 157 46 317 2110 1091 334 758 2990 Regen/Repaired (Parts) 1332 | . . . . . . 139 . 11 163 64 . . 255 . 55 70 26 203 20 10 245 61 10 . Core Remaining (%) 54 | 100 . . . . 24 . . 32 . . . 50 . . . . . . 42 . 72 . 63 . Volleys Fired 1201 | . 27 30 112 6 9 216 32 22 54 2 . 11 71 34 104 16 22 17 23 55 126 44 54 114 Largest 4 | . 2 2 2 1 1 2 2 2 3 3 . 1 3 3 3 3 3 3 3 3 3 4 4 4 Hottest 404 | . 70 150 150 75 23 200 111 115 263 98 . 98 187 187 240 109 109 163 144 165 200 212 404 404 Shots Fired 2699 | . 51 58 176 6 9 361 65 42 89 6 . 11 142 89 256 36 49 47 69 140 313 158 198 328 Gun 2166 | . 51 51 98 6 7 299 65 40 64 2 . . 142 89 243 32 45 24 68 109 266 114 149 202 Cannon 290 | . . . 60 . . . . . 3 2 . 6 . . . . . 10 1 29 14 40 46 79 Launcher 171 | . . . . . . 23 . . 22 . . 5 . . 13 4 4 13 . 2 31 4 3 47 Special 72 | . . 7 18 . 2 39 . 2 . 2 . . . . . . . . . . 2 . . . Kinetic 1454 | . 27 23 156 . 7 116 47 32 50 4 . . 24 28 165 32 45 34 46 121 268 77 63 89 Thermal 955 | . 24 35 20 6 . 183 18 8 17 . . 6 118 61 78 . . . . . 5 77 127 172 Explosive 129 | . . . . . . 12 . . 17 . . 5 . . 13 4 4 13 . 2 6 4 3 46 Electromagnetic 42 | . . . . . . 11 . . 5 . . . . . . . . . . . 25 . . 1 Impact 31 | . . . . . . 31 . . . . . . . . . . . . . . . . . . Entropic 72 | . . . . . . . . . . . . . . . . . . . 23 17 7 . 5 20 Robot Hit Streak 38 | . 20 21 25 7 16 27 26 17 26 8 . 9 17 38 29 32 12 9 27 22 34 30 19 34 Robot Miss Streak 8 | . 4 2 2 . . 3 1 2 3 . . 1 3 2 4 5 3 1 1 2 2 4 8 4 Penetration Max 3 | . . . . . . 2 1 1 1 . . . . . 3 1 1 1 2 1 2 1 2 2 Secondary Targets 41 | . . 1 2 . . 3 1 1 . . . . 2 1 6 . 2 . 7 6 7 1 . 1 Max Gunslinging Chain 1 | . . 1 1 . . 1 1 1 . . . . 1 1 1 . 1 . 1 1 1 1 . 1 Shots Hit Robots 1965 | . 34 31 95 6 10 257 57 36 90 6 . 7 152 81 201 29 33 28 61 114 208 104 101 224 Core Hits 1293 | . 21 14 37 5 3 133 22 18 117 . . 16 56 17 143 58 50 46 23 59 145 66 53 191 Critical Kills 53 | . . . 1 . . 1 . 1 2 . . . 6 2 13 1 2 3 . 3 8 1 1 8 Critical Parts Destroyed 91 | . . . . . . 9 3 2 1 . . . 18 1 21 1 1 2 . 6 10 2 4 10 Critical Strikes 213 | . 2 . 4 . . 33 4 3 10 . . . 28 14 39 2 4 5 1 10 19 6 6 23 Burn 32 | . 2 . . . . 23 1 . . . . . . . 3 . . . . . . 3 . . Meltdown 5 | . . . . . . . . . . . . . . . . . . . . . . . . 5 Destroy 152 | . . . 2 . . 7 3 3 3 . . . 24 14 36 2 4 5 1 8 17 3 5 15 Blast 3 | . . . 2 . . . . . . . . . . . . . . . . . 1 . . . Smash 3 | . . . . . . 3 . . . . . . . . . . . . . . . . . . Sever 7 | . . . . . . . . . 7 . . . . . . . . . . . . . . . Impale 4 | . . . . . . . . . . . . . 4 . . . . . . . . . . . Detonate 7 | . . . . . . . . . . . . . . . . . . . . 2 1 . 1 3 Melee Attacks 83 | . . . . . 1 . . . 37 . . . 41 . . 3 . . . . . . . 1 Kinetic 1 | . . . . . . . . . . . . . . . . . . . . . . . . 1 Impact . | . . . . . . . . . . . . . . . . . . . . . . . . . Slashing 41 | . . . . . 1 . . . 37 . . . . . . 3 . . . . . . . . Piercing 41 | . . . . . . . . . . . . . 41 . . . . . . . . . . . Sneak Attacks 6 | . . . . . . . . . 1 . . . 5 . . . . . . . . . . . Combat Hostiles . | . . . . . . . . . . . . . . . . . . . . . . . . . Follow-up Attacks 4 | . . . . . . . . . . . . . 4 . . . . . . . . . . . Damage Inflicted 94354 | . 446 371 1660 143 162 9001 1286 1069 7130 158 . 1662 4372 2091 7200 2174 1991 4958 1892 4472 10221 4346 5361 22188 Guns 44142 | . 446 371 1081 143 108 5544 1286 1069 1148 62 . . 3038 2091 4036 840 1130 521 1879 2923 6339 2088 2985 5014 Cannons 8410 | . . . 579 . . . . . 81 96 . 139 . . . . . 126 13 576 372 1454 1495 3479 Explosions 37259 | . . . . . . 1446 . . 4774 . . 1523 . . 3164 1334 861 4311 . 969 3510 804 881 13682 Melee 2475 | . . . . . 54 . . . 1087 . . . 1334 . . . . . . . . . . . Ramming 132 | . . . . . . 75 . . 40 . . . . . . . . . . 4 . . . 13 Kinetic 27960 | . 170 159 1648 . 108 2071 937 883 850 158 . . 550 711 2292 840 1130 647 1099 2740 6308 1527 1059 2073 Thermal 25130 | . 276 212 12 143 . 3692 349 186 509 . . 139 2488 1380 2375 . . . . 349 642 2054 3427 6897 Explosive 31653 | . . . . . . 717 . . 4332 . . 1523 . . 2533 1334 861 4311 . 620 2078 404 616 12324 Electromagnetic 2336 | . . . . . . 510 . . 312 . . . . . . . . . . . 982 361 64 107 Impact 1936 | . . . . . . 1936 . . . . . . . . . . . . . . . . . . Slashing 1141 | . . . . . 54 . . . 1087 . . . . . . . . . . . . . . . Piercing 1334 | . . . . . . . . . . . . . 1334 . . . . . . . . . . . Entropic 2732 | . . . . . . . . . . . . . . . . . . . 793 759 211 . 195 774 Highest Corruption 5 | . 1 1 1 1 . 4 3 3 . 5 5 5 . . 1 1 3 3 2 1 1 . 4 5 Average Corruption 1 | . 1 1 1 1 . 2 3 3 . 5 5 5 . . 1 1 2 3 1 1 1 . 4 1 Corruption Purged 7 | . . . . . . 6 . . . . . . . . . . . . . . 1 . . . Corruption Blocked 59 | . . . . . . . . . 39 7 . . 10 3 . . . . . . . . . . Effects 186 | . 5 6 41 13 . 39 19 15 . 1 . 4 . . 4 2 7 1 4 6 5 . 4 10 Message Errors 47 | . 1 1 11 3 . 10 5 3 . . . 1 . . 1 . 1 . 2 1 2 . 1 4 Matter Fused 44 | . 1 1 8 1 . 11 6 4 . 1 . . . . 2 . 3 . . 2 . . 1 3 Heat Flow Errors 19 | . 2 3 3 2 . 1 2 2 . . . . . . 1 1 . 1 1 . . . . . Energy Discharges 20 | . . . 5 5 . 4 2 1 . . . . . . . . 1 . . . . . 1 1 Parts Rejected 6 | . . . . . . 1 . . . . . 1 . . . . . . . 1 1 . . 2 Data Loss (minor) 25 | . . 1 7 . . 6 2 4 . . . 1 . . . 1 . . 1 1 . . 1 . Data Loss (major) 7 | . 1 . 3 2 . . 1 . . . . . . . . . . . . . . . . . Misfires 9 | . . . 3 . . 2 1 1 . . . . . . . . 1 . . . 1 . . . Alerts 3 | . . . 1 . . . . . . . . 1 . . . . 1 . . . . . . . Weapon Failures 6 | . . . . . . 4 . . . . . . . . . . . . . 1 1 . . . Overload Shots 38 | . . . . . . . . . . . . . . . 3 . . . . . . . 20 15 Effects 4 | . . . . . . . . . . . . . . . . . . . . . . . 3 1 Energy Bleed 2 | . . . . . . . . . . . . . . . . . . . . . . . 1 1 Heat Surge 2 | . . . . . . . . . . . . . . . . . . . . . . . 2 . Overflow Damage 2614 | . . . . . . 760 . . 191 . . 28 35 . 65 9 8 85 . 51 28 57 165 1132 Projectiles 1155 | . . . . . . 727 . . . . . 3 . . . . . . . 14 . 57 72 282 Explosions 1352 | . . . . . . 33 . . 119 . . 25 . . 65 9 8 85 . 37 28 . 93 850 Melee 107 | . . . . . . . . . 72 . . . 35 . . . . . . . . . . . Knockbacks 24 | . . . 5 . . 11 . . . . . . . . . . . . . 4 3 . . 1 Impact 12 | . . . . . . 11 . . . . . . . . . . . . . . . . . 1 Kinetic 12 | . . . 5 . . . . . . . . . . . . . . . . 4 3 . . . Secondary . | . . . . . . . . . . . . . . . . . . . . . . . . . Self-Inflicted Damage 2672 | . . . . . . 85 . . 259 . . . . . 361 90 159 63 . 2 419 26 11 1197 Shots 78 | . . . . . . 4 . . 8 . . . . . 21 4 8 1 . . 11 2 1 18 Rammed 8 | . . . . . . 2 . . 5 . . . . . . . . . . 1 . . . . Targets Rammed 12 | . . . . . . 4 . . 5 . . . . . . . . . . 1 . . . 2 Kicked 4 | . . . . . . 2 . . . . . . . . . . . . . . . . . 2 Crushed . | . . . . . . . . . . . . . . . . . . . . . . . . . Highest Temperature 494 | . 313 308 399 244 . 357 185 312 494 62 . 48 258 306 343 67 . 140 106 349 314 381 353 428 Average Temperature 99 | . 65 86 142 68 . 96 42 135 103 34 . 21 97 146 128 28 . 24 51 78 81 110 107 151 Received Heat Transfer 7386 | . . . 1274 . . 937 264 10 1066 . . . 307 . 1102 307 90 . 4 471 493 126 159 776 Effects 24 | . . . 3 . . . . 2 4 . . . 2 . 2 . . . . 2 . 1 1 7 Shutdowns 11 | . . . . . . . . . 2 . . . . . 1 . . . . 1 . 1 1 5 Energy Bleed 4 | . . . . . . . . . . . . . 2 . . . . . . 1 . . . 1 Interference 4 | . . . 2 . . . . 2 . . . . . . . . . . . . . . . . Short Circuit 1 | . . . 1 . . . . . . . . . . . . . . . . . . . . . Damage (minor) 2 | . . . . . . . . . . . . . . . 1 . . . . . . . . 1 Damage (major) 2 | . . . . . . . . . 2 . . . . . . . . . . . . . . . Siege Activations 6 | . . . . . . . . . 2 . . . . 1 2 . . . . 1 . . . . Total Turns 121 | . . . . . . . . . 14 . . . . 25 30 . . . . 52 . . . . Longest Duration 52 | . . . . . . . . . 11 . . . . 25 17 . . . . 52 . . . . Robots Corrupted 8 | . . . . . . 8 . . . . . . . . . . . . . . . . . . Combat Hostiles 5 | . . . . . . 5 . . . . . . . . . . . . . . . . . . Parts Fried 14 | . . . . . . 8 1 . . . . . . . . . . . . . 5 . . . Impact Corruptions 25 | . . . . . . 25 . . . . . . . . . . . . . . . . . . Robots Melted 11 | . . . . . . 6 . . . . . . . . . . . . . . . . . 5 Combat Hostiles 9 | . . . . . . 4 . . . . . . . . . . . . . . . . . 5 Parts Melted 81 | . 2 2 . . . 31 . . 1 . . . 21 . 6 . . 1 . . 1 2 4 10 Heat Transferred 34968 | . 962 629 37 222 . 9250 610 222 594 . . 200 3441 2109 3593 . . . . 300 550 2649 3347 6253 Parts Sabotaged 2 | . . . . . . . . . . . . . . . . . . . . . . . 2 . Parts Stolen . | . . . . . . . . . . . . . . . . . . . . . . . . . Parts Stripped 5 | . . . . . . . . . . . . . . . . . . . . . . . . 5 Power Chain Reactions 11 | . . . . . . 5 . . 2 . . . . . . . . . . . 3 1 . . Alert | -11 -10 -10 -10 -9 -9 -6 -6 -6 -5 -5 -5 -5 -4 -4 -4 -4 -4 -4 -3 -3 -3 -2 -2 -1 ------- Run | Yrd Mat Min Sub Rec Scr Fac Ext Cet Fac Was Fac DSF Fac Was Fac Upp Upp War Pro Res Tes Res Qua Acc Peak Influence 3081 | . 240 110 . 92 . 381 528 257 1503 464 286 413 379 63 1256 . . . . 632 1928 2225 1681 3081 Initial 1100 | . . . . . . . 15 257 60 439 286 175 183 63 7 . . . . 119 177 944 1100 1100 Average 508 | . 113 34 . 8 . 145 197 164 804 451 286 323 199 35 512 . . . . 415 1076 1456 1289 1847 Maximum Alert Level 5 | . 1 . . . . 1 2 1 4 2 1 2 1 . 4 . . . . 2 5 5 5 5 Low Security (%) 47 | 100 69 100 . 100 . 70 52 54 34 . . 6 49 100 40 . . . . 13 4 . . . Level 1 17 | . 30 . . . . 29 38 45 1 . 100 54 50 . 9 . . . . 14 7 . . . Level 2 6 | . . . . . . . 9 . . 100 . 39 . . 10 . . . . 71 9 . . . Level 3 8 | . . . . . . . . . 20 . . . . . 27 . . . . . 32 29 8 3 Level 4 14 | . . . . . . . . . 42 . . . . . 12 . . . . . 37 40 76 39 Level 5 2 | . . . . . . . . . . . . . . . . . . . . . 9 2 . 28 High Security 3 | . . . . . . . . . . . . . . . . . . . . . . 27 14 27 Max Security . | . . . . . . . . . . . . . . . . . . . . . . . . . Squads Dispatched 150 | . . . . . . 29 2 . 13 . 1 2 7 . 18 . . . . 6 20 11 11 30 Investigation 30 | . . . . . . 7 1 . 2 . 1 . 3 . 6 . . . . 4 5 1 . . Extermination 24 | . . . . . . 9 . . 2 . . . 3 . 3 . . . . . 3 1 1 2 Reinforcement 35 | . . . . . . 7 1 . 3 . . 2 1 . 6 . . . . 2 4 2 1 6 Assault 45 | . . . . . . . . . 5 . . . . . 3 . . . . . 5 6 7 19 Garrison 16 | . . . . . . 6 . . 1 . . . . . . . . . . . 3 1 2 3 Intercept . | . . . . . . . . . . . . . . . . . . . . . . . . . Searches Triggered . | . . . . . . . . . . . . . . . . . . . . . . . . . Construction Impeded 6 | . . . . . . 2 . . . . . . . . 2 . . . . 1 . . . 1 Haulers Reinforced 8 | . . . . . . 1 . . 2 . . . . . . . . . . . 1 1 . 3 Active Scanning Responses . | . . . . . . . . . . . . . . . . . . . . . . . . . Cargo Convoy Interrupts 1 | . . . . . . . . . 1 . . . . . . . . . . . . . . . Stealth | -11 -10 -10 -10 -9 -9 -6 -6 -6 -5 -5 -5 -5 -4 -4 -4 -4 -4 -4 -3 -3 -3 -2 -2 -1 --------- Run | Yrd Mat Min Sub Rec Scr Fac Ext Cet Fac Was Fac DSF Fac Was Fac Upp Upp War Pro Res Tes Res Qua Acc Distress Signals 24 | . . . . . . . 1 2 2 . . . 4 . . . . . . 4 3 3 1 4 Communications Jammed . | . . . . . . . . . . . . . . . . . . . . . . . . . Distress Signals . | . . . . . . . . . . . . . . . . . . . . . . . . . Times Spotted 755 | . 13 8 32 . . 60 35 13 81 6 . 8 37 6 69 16 11 30 17 38 83 44 40 108 Peak Tracking Total 19 | . 3 3 7 . . 5 7 5 10 6 . 4 5 2 6 12 4 11 6 9 11 8 10 19 Tactical Retreats 27 | . 1 1 3 . . 1 4 . 5 1 . . . 2 1 . . . . . 1 5 2 . Traps | -11 -10 -10 -10 -9 -9 -6 -6 -6 -5 -5 -5 -5 -4 -4 -4 -4 -4 -4 -3 -3 -3 -2 -2 -1 ------- Run | Yrd Mat Min Sub Rec Scr Fac Ext Cet Fac Was Fac DSF Fac Was Fac Upp Upp War Pro Res Tes Res Qua Acc Traps Triggered 23 | . 7 . . . . 2 1 . 2 . . 1 2 . 3 . . . . 3 1 1 . . Indirectly . | . . . . . . . . . . . . . . . . . . . . . . . . . Trap Hack Attempts . | . . . . . . . . . . . . . . . . . . . . . . . . . Triggered . | . . . . . . . . . . . . . . . . . . . . . . . . . Disarmed . | . . . . . . . . . . . . . . . . . . . . . . . . . Reprogrammed . | . . . . . . . . . . . . . . . . . . . . . . . . . Reused . | . . . . . . . . . . . . . . . . . . . . . . . . . Traps Extracted . | . . . . . . . . . . . . . . . . . . . . . . . . . Installed . | . . . . . . . . . . . . . . . . . . . . . . . . . Triggered 6 | . . . . . . 1 . . . . . . . . . . . 5 . . . . . . Most Traps Carried 2 | . . . . . . . . . . . . . . . . . 2 2 . . . . . . Objects Rigged 6 | . . . . . . . . . . . . . . . . . . . . . 2 3 1 . Exploded 3 | . . . . . . . . . . . . . . . . . . . . . . 2 1 . Machines | -11 -10 -10 -10 -9 -9 -6 -6 -6 -5 -5 -5 -5 -4 -4 -4 -4 -4 -4 -3 -3 -3 -2 -2 -1 ---------- Run | Yrd Mat Min Sub Rec Scr Fac Ext Cet Fac Was Fac DSF Fac Was Fac Upp Upp War Pro Res Tes Res Qua Acc Machines Disabled 102 | . . . 2 . . 7 3 . 18 . . 1 4 . 13 2 . 1 2 2 21 5 12 9 Max in Single Turn 5 | . . . 1 . . 1 1 . 3 . . 1 2 . 5 1 . 1 1 1 2 1 4 1 Garrison Access 9 | . . . . . . . . . 3 . . . 1 . 2 . . . . 1 1 1 . . Energy Cycler 1 | . . . . . . . . . . . . . . . . . . . . . . . . 1 Machines Repaired . | . . . . . . . . . . . . . . . . . . . . . . . . . Machines Dismantled 4 | . . . . . . . . . . . . . . . . . . 1 2 . . . 1 . Machines Sabotaged . | . . . . . . . . . . . . . . . . . . . . . . . . . Overloaded Fab Kills . | . . . . . . . . . . . . . . . . . . . . . . . . . Hacking | -11 -10 -10 -10 -9 -9 -6 -6 -6 -5 -5 -5 -5 -4 -4 -4 -4 -4 -4 -3 -3 -3 -2 -2 -1 --------- Run | Yrd Mat Min Sub Rec Scr Fac Ext Cet Fac Was Fac DSF Fac Was Fac Upp Upp War Pro Res Tes Res Qua Acc Machines Accessed 90 | . 6 1 2 7 4 14 14 1 6 . 1 . 5 . 8 3 . 2 . 4 9 2 . 1 Terminals 40 | . 4 1 . 3 . 5 14 1 . . 1 . 1 . 2 1 . . . . 5 1 . 1 Fabricators 12 | . . . . . . 5 . . 2 . . . 1 . 2 . . . . . 2 . . . Repair Stations 3 | . . . . . . 1 . . . . . . 1 . . . . . . . 1 . . . Recycling Units 13 | . 2 . . 4 . 1 . . 2 . . . . . 2 . . . . 2 . . . . Scanalyzers 4 | . . . . . . 2 . . . . . . 1 . . . . . . 1 . . . . Garrison Access 8 | . . . . . . . . . 2 . . . 1 . 2 . . . . 1 1 1 . . Total Hacks 290 | . 16 3 3 18 26 42 42 1 17 . 3 . 40 . 27 6 . 7 . 5 29 4 . 1 Successful 190 | . 8 1 3 10 26 26 22 1 17 . 1 . 28 . 16 6 . 7 . 4 13 1 . . Failed 100 | . 8 2 . 8 . 16 20 . . . 2 . 12 . 11 . . . . 1 16 3 . 1 Catastrophic 14 | . . . . . . 1 3 . . . . . 2 . 1 . . . . . 5 1 . 1 Database Lockouts . | . . . . . . . . . . . . . . . . . . . . . . . . . Manual 111 | . 12 3 . 12 . 24 26 1 5 . . . 8 . 13 . . . . 2 5 . . . Terminals 118 | . 11 3 . 9 . 15 42 1 . . 3 . 2 . 9 4 . . . . 16 2 . 1 Fabricators 63 | . . . . . . 15 . . 13 . . . 16 . 11 . . . . . 8 . . . Repair Stations 17 | . . . . . . 3 . . . . . . 11 . . . . . . . 3 . . . Recycling Units 24 | . 5 . . 9 . 2 . . 2 . . . . . 4 . . . . 2 . . . . Scanalyzers 19 | . . . . . . 7 . . . . . . 10 . . . . . . 2 . . . . Garrison Access 11 | . . . . . . . . . 2 . . . 1 . 3 . . . . 1 2 2 . . Terminal Hacks 82 | . 4 1 3 3 26 3 18 1 . . 1 . . . 3 6 . 7 . . 5 1 . . Record 35 | . . . 1 . 25 . 2 . . . . . . . . 5 . . . . 1 1 . . Part Schematic 8 | . 1 . . 3 . 1 3 . . . . . . . . . . . . . . . . . Robot Schematic 5 | . 2 . . . . . 3 . . . . . . . . . . . . . . . . . Robot Analysis 4 | . 1 . . . . 1 . . . . . . . . 2 . . . . . . . . . Prototype ID Bank 6 | . . . . . . . . . . . . . . . . . . 6 . . . . . . Open Door 10 | . . . 1 . . 1 5 1 . . . . . . . 1 . 1 . . . . . . Open DSF 1 | . . . . . . . . . . . 1 . . . . . . . . . . . . . Branch Access Points 1 | . . . . . . . . . . . . . . . 1 . . . . . . . . . Unreport Threat 1 | . . 1 . . . . . . . . . . . . . . . . . . . . . . Locate Traps 1 | . . . . . . . 1 . . . . . . . . . . . . . . . . . Dispatch Records 1 | . . . . . . . . . . . . . . . . . . . . . 1 . . . Assault Status 1 | . . . . . . . 1 . . . . . . . . . . . . . . . . . Recall Extermination 1 | . . . . . . . . . . . . . . . . . . . . . 1 . . . Recall Reinforcements 1 | . . . . . . . 1 . . . . . . . . . . . . . . . . . Recall Assault 1 | . . . . . . . 1 . . . . . . . . . . . . . . . . . Registered Components 1 | . . . . . . . . . . . . . . . . . . . . . 1 . . . Registered Prototypes 1 | . . . . . . . 1 . . . . . . . . . . . . . . . . . Zone Layout 1 | . . . . . . . . . . . . . . . . . . . . . 1 . . . Derelict Proto ID Bank 1 | . . . . . 1 . . . . . . . . . . . . . . . . . . . Release Object 1 | . . . 1 . . . . . . . . . . . . . . . . . . . . . Fabricator Hacks 27 | . . . . . . 4 . . 10 . . . 6 . 4 . . . . . 3 . . . Network Status 1 | . . . . . . . . . . . . . . . 1 . . . . . . . . . Load Schematic 14 | . . . . . . 2 . . 5 . . . 3 . 2 . . . . . 2 . . . Build 12 | . . . . . . 2 . . 5 . . . 3 . 1 . . . . . 1 . . . Repair Station Hacks 12 | . . . . . . 2 . . . . . . 8 . . . . . . . 2 . . . Scan Component 6 | . . . . . . 1 . . . . . . 4 . . . . . . . 1 . . . Repair 6 | . . . . . . 1 . . . . . . 4 . . . . . . . 1 . . . Recycling Unit Hacks 4 | . 2 . . 2 . . . . . . . . . . . . . . . . . . . . Retrieve Components 4 | . 2 . . 2 . . . . . . . . . . . . . . . . . . . . Scanalyzer 16 | . . . . . . 7 . . . . . . 8 . . . . . . 1 . . . . Insert Component 8 | . . . . . . 3 . . . . . . 4 . . . . . . 1 . . . . Analyze 8 | . . . . . . 4 . . . . . . 4 . . . . . . . . . . . Garrison Access Hacks 8 | . . . . . . . . . 2 . . . 1 . 3 . . . . 1 1 . . . Seal Access 7 | . . . . . . . . . 2 . . . 1 . 2 . . . . 1 1 . . . Coupler Status 1 | . . . . . . . . . . . . . . . 1 . . . . . . . . . Unauthorized Hacks 41 | . 2 . . 5 . 10 4 . 5 . . . 5 . 6 . . . . 2 2 . . . Terminals 14 | . 2 . . 1 . 5 4 . . . . . . . 1 . . . . . 1 . . . Track 4 | . 1 . . . . 2 1 . . . . . . . . . . . . . . . . . Botnet 9 | . 1 . . 1 . 3 2 . . . . . . . 1 . . . . . 1 . . . Operators 1 | . . . . . . . 1 . . . . . . . . . . . . . . . . . Fabricators 16 | . . . . . . 4 . . 3 . . . 5 . 3 . . . . . 1 . . . Report 1 | . . . . . . . . . . . . . 1 . . . . . . . . . . . Prioritize 4 | . . . . . . . . . 2 . . . 1 . 1 . . . . . . . . . Liberate 9 | . . . . . . 4 . . 1 . . . 1 . 2 . . . . . 1 . . . Fabnet 1 | . . . . . . . . . . . . . 1 . . . . . . . . . . . Haulers 1 | . . . . . . . . . . . . . 1 . . . . . . . . . . . Repair Stations 7 | . . . . . . 1 . . 2 . . . . . 2 . . . . 2 . . . . Recycling Units 4 | . . . . 4 . . . . . . . . . . . . . . . . . . . . Reject 1 | . . . . 1 . . . . . . . . . . . . . . . . . . . . Tunnel 3 | . . . . 3 . . . . . . . . . . . . . . . . . . . . Fedlink 1 | . . . . . . 1 . . . . . . . . . . . . . . . . . . Scrapoids 6 | . . . . . . . . . 2 . . . . . 2 . . . . 2 . . . . Scanalyzers . | . . . . . . . . . . . . . . . . . . . . . . . . . Garrison Access . | . . . . . . . . . . . . . . . . . . . . . . . . . Data Cores Recovered 1 | . . . . . . . . . . . . . . . 1 . . . . . . . . . Used . | . . . . . . . . . . . . . . . . . . . . . . . . . Hacking Detections 54 | . 5 . . 4 . 10 10 . 1 . 1 . 4 . 6 . . . . 1 9 2 . 1 Full Trace Events 20 | . . . . 2 . 4 1 . . . 1 . 3 . 4 . . . . . 4 1 . . Feedback Events 1 | . . . . . . 1 . . . . . . . . . . . . . . . . . . Corruption 1 | . . . . . . 1 . . . . . . . . . . . . . . . . . . Feedback Blocked . | . . . . . . . . . . . . . . . . . . . . . . . . . Robot Schematics Acquired 6 | . 2 . . . . . 3 . . . . . . . . . . . . . 1 . . . Robots Built 9 | . . . . . . 1 . . 4 . . . 4 . . . . . . . . . . . Authchips 5 | . . . . . . 1 . . 2 . . . 2 . . . . . . . . . . . Time 309 | . . . . . . 81 . . 76 . . . 152 . . . . . . . . . . . Total Robot Build Rating 41 | . . . . . . 1 . . 20 . . . 20 . . . . . . . . . . . Part Schematics Acquired 53 | . 1 . . 7 10 18 7 3 1 . . . 3 . . . . . . . 3 . . . Parts Built 6 | . . . . . . 2 . . 3 . . . . . 1 . . . . . . . . . Authchips 4 | . . . . . . 1 . . 3 . . . . . . . . . . . . . . . Time 553 | . . . . . . 47 . . 133 . . . 93 . 93 . . . . . 187 . . . Total Part Build Rating 29 | . . . . . . 10 . . 12 . . . . . 7 . . . . . . . . . Parts Repaired 6 | . . . . . . 1 . . . . . . 4 . . . . . . . 1 . . . Time 187 | . . . . . . 22 . . . . . . 131 . . . . . . . 34 . . . Parts Recycled . | . . . . . . . . . . . . . . . . . . . . . . . . . Recycled Matter . | . . . . . . . . . . . . . . . . . . . . . . . . . Retrieved Matter . | . . . . . . . . . . . . . . . . . . . . . . . . . Retrieved Components 15 | . 10 . . 5 . . . . . . . . . . . . . . . . . . . . Parts Scanalyzed 7 | . . . . . . 3 . . . . . . 4 . . . . . . . . . . . Part Schematics Acquired 6 | . . . . . . 3 . . . . . . 3 . . . . . . . . . . . Parts Damaged 2 | . . . . . . 1 . . . . . . . . . . . . . 1 . . . . Bothacking | -11 -10 -10 -10 -9 -9 -6 -6 -6 -5 -5 -5 -5 -4 -4 -4 -4 -4 -4 -3 -3 -3 -2 -2 -1 ------------ Run | Yrd Mat Min Sub Rec Scr Fac Ext Cet Fac Was Fac DSF Fac Was Fac Upp Upp War Pro Res Tes Res Qua Acc Used RIF Installer . | . . . . . . . . . . . . . . . . . . . . . . . . . Robots Hacked 3 | . . . . . . 3 . . . . . . . . . . . . . . . . . . Non-combat 3 | . . . . . . 3 . . . . . . . . . . . . . . . . . . Combat . | . . . . . . . . . . . . . . . . . . . . . . . . . Robot Hacks Applied 3 | . . . . . . 3 . . . . . . . . . . . . . . . . . . find_chute 1 | . . . . . . 1 . . . . . . . . . . . . . . . . . . find_recycling 2 | . . . . . . 2 . . . . . . . . . . . . . . . . . . Relay Couplers Released 11 | . . . . . . . . . 2 . . . . . . . . . . . . 6 . 3 Machine Destruction 4 | . . . . . . . . . 2 . . . . . . . . . . . . 2 . . Programmers 7 | . . . . . . . . . . . . . . . . . . . . . . 4 . 3 Fabnet Peak Effective % . | . . . . . . . . . . . . . . . . . . . . . . . . . Robots Rewired 30 | . . . . 8 . . 14 . . . . . . . . . . 5 . . 3 . . . Allies Hacked 2 | . . . . . . 1 . . . . . . . . . . . . . . . 1 . . Hacks Repelled . | . . . . . . . . . . . . . . . . . . . . . . . . . Allies | -11 -10 -10 -10 -9 -9 -6 -6 -6 -5 -5 -5 -5 -4 -4 -4 -4 -4 -4 -3 -3 -3 -2 -2 -1 -------- Run | Yrd Mat Min Sub Rec Scr Fac Ext Cet Fac Was Fac DSF Fac Was Fac Upp Upp War Pro Res Tes Res Qua Acc Total Allies 86 | . . 2 . 8 . 11 19 5 9 . . . 4 . 10 . . 5 . 10 3 . . . Largest Group 15 | . . 2 2 8 8 12 15 12 9 . . . 4 3 5 . . 5 4 5 5 2 . . Highest-Rated Group 695 | . . 44 44 103 103 204 539 695 543 . . . 164 123 235 . . 270 214 326 320 180 . . Highest-Rated Ally 159 | . . 31 31 27 27 37 159 159 96 . . . 41 41 47 . . 65 65 67 90 90 . . Total Orders 12 | . . . . 1 3 5 . . 1 . . . . . . . . . . . 2 . . . STAY 4 | . . . . . 1 2 . . . . . . . . . . . . . . 1 . . . ROAM 1 | . . . . . . . . . . . . . . . . . . . . . 1 . . . FOLLOW 3 | . . . . . 1 2 . . . . . . . . . . . . . . . . . . AID 1 | . . . . . . 1 . . . . . . . . . . . . . . . . . . DROP 1 | . . . . . . . . . 1 . . . . . . . . . . . . . . . PICKUP 2 | . . . . 1 1 . . . . . . . . . . . . . . . . . . . Ally Attacks 1056 | . . 1 17 . . 78 151 86 167 . . . 28 26 116 . . 42 17 41 165 121 . . Total Damage 30216 | . . 20 341 . . 1223 3553 2156 5033 . . . 850 1152 2648 . . 1841 525 914 5013 4947 . . Kills 168 | . . . 5 . . 12 26 12 34 . . . 3 1 12 . . 7 5 4 26 21 . . Allies Corrupted 4 | . . . . . . 1 . . 1 . . . . . . . . . 1 . . 1 . . Allies Melted 2 | . . . . . . . 1 . . . . . . . . . . 1 . . . . . . Intel | -11 -10 -10 -10 -9 -9 -6 -6 -6 -5 -5 -5 -5 -4 -4 -4 -4 -4 -4 -3 -3 -3 -2 -2 -1 ------- Run | Yrd Mat Min Sub Rec Scr Fac Ext Cet Fac Was Fac DSF Fac Was Fac Upp Upp War Pro Res Tes Res Qua Acc Robot Analysis Total 4 | . 1 . . . . 1 . . . . . . . . 2 . . . . . . . . . Derelict Logs Recovered 11 | . . 2 2 . 4 . . . . . . . . . . 2 1 . . . . . . . Drone Launches . | . . . . . . . . . . . . . . . . . . . . . . . . . Drone Recoveries . | . . . . . . . . . . . . . . . . . . . . . . . . . Exploration | -11 -10 -10 -10 -9 -9 -6 -6 -6 -5 -5 -5 -5 -4 -4 -4 -4 -4 -4 -3 -3 -3 -2 -2 -1 ------------- Run | Yrd Mat Min Sub Rec Scr Fac Ext Cet Fac Was Fac DSF Fac Was Fac Upp Upp War Pro Res Tes Res Qua Acc Turns Passed 33835 | 48 860 1090 4807 1792 4980 4113 1060 975 1989 196 5 181 1839 341 1477 661 439 819 497 884 1973 665 743 1401 Spaces Moved 18592 | 41 521 598 1473 614 3287 2427 516 382 999 173 7 150 844 118 745 634 422 661 377 545 1391 470 536 661 Core 381 | 1 1 . . . 379 . . . . . . . . . . . . . . . . . . . Treads 3677 | . 188 321 1283 . 20 778 . 273 372 . . . . 93 340 . . . . 9 . . . . Legs 4517 | . . . 30 614 1007 1160 516 109 68 . . . 734 25 . . . . . . . . . 254 Wheels 10017 | 40 332 277 160 . 1881 489 . . 559 173 7 150 110 . 405 634 422 661 377 536 1391 470 536 407 Hover . | . . . . . . . . . . . . . . . . . . . . . . . . . Flight . | . . . . . . . . . . . . . . . . . . . . . . . . . Fastest Speed 50 | 50 90 140 140 270 50 103 120 120 100 70 70 70 80 120 90 90 80 90 100 90 100 110 90 100 Average Speed 146 | 90 125 152 299 270 145 129 128 220 152 78 70 82 130 155 125 92 89 97 100 113 107 110 95 136 Slowest Speed 540 | 100 320 320 480 270 312 222 190 240 260 100 70 90 190 240 160 100 90 110 110 385 110 110 110 540 Overloaded Moves . | . . . . . . . . . . . . . . . . . . . . . . . . . Propulsion Burnouts . | . . . . . . . . . . . . . . . . . . . . . . . . . Robots Hopped . | . . . . . . . . . . . . . . . . . . . . . . . . . Cave-ins Triggered 1 | . . . . . . . . . . . . . . . . . . . . . . . . 1 Teleports 4 | . . . . . . . . . . . . . . . . . . . . . . . 1 3 Exploration Rate (%) 58 | 3 87 89 85 61 91 49 75 67 21 85 . 94 22 74 25 71 58 82 63 22 97 15 50 26 Regions Visited 24 Branch Regions 12 Pre-discovered Areas 12 | . . . 1 3 7 . . . . . . . . . . 1 . . . . . . . . Known Exits Taken 11 | . . . . . 1 1 . 1 . . 1 . . . 1 1 . 1 1 1 1 . 1 . Unknown Exits Taken 8 | 1 1 1 1 1 . . 1 . . . . . . . . . 1 . . . . 1 . . Scrap Searched 16 | . . 1 4 . 6 . . . . . . . . . . 1 1 . 3 . . . . . Spaces Dug 48 | . . . . . . 2 . . 5 . . . . . 12 2 . . . . 12 3 12 . Terrain Destroyed 1858 | . . . . . . 72 2 5 199 . . 49 11 . 185 85 107 169 52 71 270 70 79 432 Melee 7 | . . . . . . . . . 5 . . . . . . 2 . . . . . . . . Projectile 496 | . . . . . . 14 2 5 31 . . . 1 . 26 18 25 8 52 39 129 28 64 54 AOE 1352 | . . . . . . 58 . . 163 . . 49 10 . 158 65 82 161 . 32 139 42 15 378 Terrain Rammed . | . . . . . . . . . . . . . . . . . . . . . . . . . Walls Destroyed . | . . . . . . . . . . . . . . . . . . . . . . . . . Machines Disabled . | . . . . . . . . . . . . . . . . . . . . . . . . . Actions | -11 -10 -10 -10 -9 -9 -6 -6 -6 -5 -5 -5 -5 -4 -4 -4 -4 -4 -4 -3 -3 -3 -2 -2 -1 --------- Run | Yrd Mat Min Sub Rec Scr Fac Ext Cet Fac Was Fac DSF Fac Was Fac Upp Upp War Pro Res Tes Res Qua Acc Total 23087 | 49 677 701 1684 746 3494 3089 849 481 1312 235 7 194 1359 210 1075 681 452 803 429 699 1723 529 671 938 Wait 1494 | . 92 58 3 30 48 264 165 9 113 21 . . 309 6 142 . . 53 6 24 77 1 8 65 Move 18571 | 40 520 597 1472 613 3286 2426 515 381 999 172 7 149 844 117 744 633 421 660 376 544 1390 469 535 661 Hop . | . . . . . . . . . . . . . . . . . . . . . . . . . Pick Up 427 | 3 11 9 36 20 63 33 11 24 26 6 . 22 25 9 24 7 3 17 1 19 20 2 21 15 Fast Attach 172 | 6 14 . 2 3 8 19 . 6 20 2 . 5 13 10 5 5 1 4 . 8 14 . 6 21 Attach 176 | . 1 . 7 1 6 31 7 3 16 6 . 1 15 . 12 3 3 3 1 18 8 4 11 19 Detach 18 | . . . 1 1 1 5 . 1 . . . 1 . . . . . . . 5 1 . 1 1 Swap 247 | . 4 6 8 5 1 39 13 11 18 5 . 2 22 5 16 4 2 10 7 11 32 4 12 10 Drop 457 | . 8 1 43 9 71 44 12 24 24 21 . 3 24 29 28 10 . 20 2 14 37 2 15 16 Fire 1201 | . 27 30 112 6 9 216 32 22 54 2 . 11 71 34 104 16 22 17 23 55 126 44 54 114 Melee 78 | . . . . . 1 . . . 37 . . . 36 . . 3 . . . . . . . 1 Ram 1 | . . . . . . . . . . . . . . . . . . . . 1 . . . . Kick 4 | . . . . . . 2 . . . . . . . . . . . . . . . . . 2 Crush 7 | . . . . . . 2 . . 5 . . . . . . . . . . . . . . . Escape Stasis 26 | . . . . . . 8 5 . . . . . . . . . . . . . . . . 13 Rewire 175 | . . . . 58 . . 89 . . . . . . . . . . 11 1 . 16 . . . Trap 6 | . . . . . . . . . . . . . . . . . . . . . 2 3 1 . Miscellaneous 27 | . . . . . . . . . . . . . . . . . . 8 12 . . . 7 . Route ------- -11/Scrapyard -10/Materials (discovered 4 exits: [*Mat x3] / *Min) -10/Mines (discovered 3 exits: [*Mat x2] / *Sub) -10/Subcaves (discovered 3 exits: *Mat x2 / *Rec) -9/Recycling -9/Scraptown (discovered 2 exits: *Fac x2) -6/Factory (discovered 8 exits: *Fac x4 / *Low x2 / *Ext x2) -6/Extension (discovered 2 exits: *Fac / *Cet) -6/Cetus (discovered 2 exits: *Fac / [*Arc]) -5/Factory -5/Waste -5/Factory -5/DSF -4/Factory (discovered 2 exits: *Res x2) -4/Waste -4/Factory (discovered 3 exits: Res / *Upp x2) -4/Upper Caves -4/Upper Caves (discovered 2 exits: Res / *War) -4/Warlord -3/Proximity Caves -3/Research (discovered 5 exits: Res x2 / *Arm / *Tes x2) -3/Testing -2/Research -2/Quarantine -1/Access History --------- Turn | Location | Event 6 | -11/Scrapyard | Discovered new exit (range 15) 49 | -11/Scrapyard | Entered Materials 137 | -10/Materials | Discovered new exit (range 10) 311 | -10/Materials | Build established: Mutant 343 | -10/Materials | Discovered new exit (range 10) 634 | -10/Materials | Discovered new exit (range 5) 758 | -10/Materials | Discovered new exit (range 15) 909 | -10/Materials | Entered Mines 990 | -10/Mines | Found a damaged Exp. Sensor Array with a note attached 1232 | -10/Mines | Discovered new exit (range 15) 1551 | -10/Mines | Discovered new exit (range 12) 1722 | -10/Mines | A weapon hastily lodged in a ceiling crevice suddenly fell to the ground 1913 | -10/Mines | Found Prototype Device 1991 | -10/Mines | Discovered new exit (range 4) 1999 | -10/Mines | Entered Subcaves 1999 | -10/Subcaves | Accompanied by 2 allies 2004 | -10/Subcaves | Led the pair of lost Derelicts to an unsafe place 2296 | -10/Subcaves | Ambushed by swarm of Subdwellers 2304 | -10/Subcaves | Ambushed by Subdwellers from Twisted Machinery 2511 | -10/Subcaves | Shifting Twisted Machinery released Mak. Shrapnel Gun 2553 | -10/Subcaves | Shifting Twisted Machinery released Sub. Power Source 3329 | -10/Subcaves | Learned Materials interactive machine intel 3404 | -10/Subcaves | Shifting Twisted Machinery released Battle Cannon 3405 | -10/Subcaves | Shifting Twisted Machinery released Sub. Laser 3692 | -10/Subcaves | Discovered new exit (range 9) 3900 | -10/Subcaves | Shifting Twisted Machinery released Piercing Trap 3967 | -10/Subcaves | Identified exit to Materials 4082 | -10/Subcaves | A swath of the cavern ceiling suddenly collapsed 4294 | -10/Subcaves | Found SUBCON Basin 5634 | -10/Subcaves | A swath of the cavern ceiling suddenly collapsed 6236 | -10/Subcaves | Ambushed by Subdwellers from Twisted Machinery 6288 | -10/Subcaves | Learned location of Zion (-6) 6288 | -10/Subcaves | Met a Zionite searching for "candidates" 6670 | -10/Subcaves | Core integrity fell below 50% 6726 | -10/Subcaves | Discovered new exit (range 14) 6806 | -10/Subcaves | Entered Recycling 7175 | -9/Recycling | Scanned before Scraplab entrance 7214 | -9/Recycling | Entered Scraplab 7812 | -9/Recycling | Build established: Commander-Mutant 8584 | -9/Recycling | Discovered new exit (range 2) 8598 | -9/Recycling | Entered Scraptown 8598 | -9/Scraptown | Accompanied by 8 allies 8598 | -9/Scraptown | System corruption cleaned by C-Scrubber 8912 | -9/Scraptown | Visited Fellowship of the Rings 9017 | -9/Scraptown | Visited SPCMW 9019 | -9/Scraptown | Tech Extrapolator generated special schematic: Machine Rigger 9074 | -9/Scraptown | Heard Great Nut preacher, LISTEN AND RECITE! 9090 | -9/Scraptown | Visited Cave Peace 9174 | -9/Scraptown | Scanned Subdweller tech in exchange for log data 9182 | -9/Scraptown | Learned Factory emergency access door positions 9184 | -9/Scraptown | Learned Research emergency access door positions 9187 | -9/Scraptown | Learned 8 Research zone layouts 9849 | -9/Scraptown | Visited UFD Registry 9849 | -9/Scraptown | Registered with UFD as "Cogrunner" 9887 | -9/Scraptown | Visited The Evicted 9995 | -9/Scraptown | Visited LU-1G1's Boring Crew 10095 | -9/Scraptown | Visited Modified Component R&D 10257 | -9/Scraptown | Visited Derelict Rescue Squad 10308 | -9/Scraptown | Visited A0-MCA Data Center 10324 | -9/Scraptown | Given a B rating by A0-MCA 10414 | -9/Scraptown | Delivered Scrap Shield to a Scientist 10669 | -9/Scraptown | Visited Infowarlord's Domain 10745 | -9/Scraptown | Visited Science Testing Area 10818 | -9/Scraptown | Visited DA-N13 Charitable Foundation 10842 | -9/Scraptown | Found DCF Scrap (29 items) 10902 | -9/Scraptown | Visited Science Guys 11128 | -9/Scraptown | Visited Cartography Club 11347 | -9/Scraptown | Found Deep Structural Scanner 11352 | -9/Scraptown | Identified exit to Factory 11352 | -9/Scraptown | Learned location of 2 exits from Research 11352 | -9/Scraptown | Learned location of 1 exit from Factory 11352 | -9/Scraptown | Learned Storage emergency access door positions 11352 | -9/Scraptown | Learned 16 Proximity Caves zone layouts 11352 | -9/Scraptown | Learned location of 2 exits from Lower Caves 11352 | -9/Scraptown | Learned 20 Lower Caves zone layouts 11352 | -9/Scraptown | Learned 12 Research zone layouts 11352 | -9/Scraptown | Learned 8 Research zone layouts 11352 | -9/Scraptown | Learned 24 Factory zone layouts 11352 | -9/Scraptown | Learned 20 Factory zone layouts 11352 | -9/Scraptown | Learned 8 Factory zone layouts 11352 | -9/Scraptown | Learned 16 Materials zone layouts 11352 | -9/Scraptown | Learned 8 Materials zone layouts 11352 | -9/Scraptown | Learned location of Lower Caves (-6) 11465 | -9/Scraptown | Found A0-MCA's Component Scanner 11599 | -9/Scraptown | Found Exp. Terrain Scanner 11617 | -9/Scraptown | Visited Junk Cannon Lab 11734 | -9/Scraptown | Found Prototype Special Weapon 11734 | -9/Scraptown | Identified Junk Cannon 12066 | -9/Scraptown | Visited Cyclists 12073 | -9/Scraptown | Entered Cyclist Reading Room 12851 | -9/Scraptown | Found DRS Beacon 13501 | -9/Scraptown | Found Scrap Suit 13505 | -9/Scraptown | Found Scrap Suit 13578 | -9/Scraptown | Entered Factory 13578 | -6/Factory | Accompanied by 8 allies 13578 | -6/Factory | Evolved 8 slots: Propulsion x4, Utility x4 13579 | -6/Factory | Identified exit to Factory 13581 | -6/Factory | Identified exit to Lower Caves 13581 | -6/Factory | Identified exit to Extension 14305 | -6/Factory | Discovered exit to Lower Caves (range 8) 14897 | -6/Factory | Garrison activated, responded to threat 15003 | -6/Factory | Lost 3 parts (2n1w) 15456 | -6/Factory | Build established: Scavenger-Mutant 15689 | -6/Factory | Fabricated 0b10 Decoder Chip [Generic] (x2) 15918 | -6/Factory | Build established: Commander-Mutant 16262 | -6/Factory | Build established: Scavenger-Mutant 16363 | -6/Factory | Repaired Imp. Deuterium Engine 16407 | -6/Factory | Garrison activated, responded to threat 17108 | -6/Factory | Core integrity fell below 50% 17341 | -6/Factory | Fabricated M-13 Machinist (x1) 17414 | -6/Factory | P-60 Hacker assimilated allied Excavator 2a 17643 | -6/Factory | P-60 Hacker assimilated allied Machinist 5a 17691 | -6/Factory | Entered Extension 17691 | -6/Extension | Accompanied by 4 allies 17824 | -6/Extension | Rescued A7 17923 | -6/Extension | Rescued a captive Derelict 17945 | -6/Extension | Rescued a captive Derelict 17963 | -6/Extension | Rescued a captive Derelict 18127 | -6/Extension | Spotted B-75 Beast 18167 | -6/Extension | Spotted B-75 Beast 18207 | -6/Extension | Tech Extrapolator generated special schematic: Energy Deflector 18230 | -6/Extension | Allies destroyed B-75 Beast 18258 | -6/Extension | Lost 3 allies 18556 | -6/Extension | Lost 3 allies 18604 | -6/Extension | Rescued a captive Derelict 18605 | -6/Extension | Rescued a captive Derelict 18662 | -6/Extension | Discovered exit to Factory (range 10) 18663 | -6/Extension | Discovered new exit (range 6) 18672 | -6/Extension | Build established: Commander-Mutant 18673 | -6/Extension | Disrupted transfer network 18751 | -6/Extension | Entered Cetus 18751 | -6/Cetus | Accompanied by 12 allies (A7) 18756 | -6/Cetus | Acquired a Cetus Manufacturing Module code from A7 18769 | -6/Cetus | Spotted Cetus Guard 18769 | -6/Cetus | Spotted Cetus Guard 18778 | -6/Cetus | Spotted Cetus Guard 18778 | -6/Cetus | Spotted Cetus Guard 18799 | -6/Cetus | Allies destroyed Cetus Guard 18803 | -6/Cetus | Destroyed Cetus Guard 18809 | -6/Cetus | Destroyed Cetus Guard 18815 | -6/Cetus | Destroyed Cetus Guard 18840 | -6/Cetus | Lost 8 allies 18905 | -6/Cetus | Started Cetus Manufacturing Module 18921 | -6/Cetus | Escorted A7 to Cetus Mainframe 18930 | -6/Cetus | Manufactured an Enhanced Grunt 18955 | -6/Cetus | Manufactured an Enhanced Grunt 18980 | -6/Cetus | Manufactured an Enhanced Grunt 19005 | -6/Cetus | Manufactured an Enhanced Grunt 19030 | -6/Cetus | Manufactured an Enhanced Grunt 19112 | -6/Cetus | Build established: Scavenger-Mutant 19126 | -6/Cetus | Discovered new exit (range 15) 19173 | -6/Cetus | Spotted Cetus Guard 19173 | -6/Cetus | Spotted Cetus Guard 19178 | -6/Cetus | Spotted Cetus Guard 19181 | -6/Cetus | Allies destroyed Cetus Guard 19182 | -6/Cetus | Spotted Cetus Guard 19191 | -6/Cetus | Allies destroyed Cetus Guard 19191 | -6/Cetus | Allies destroyed Cetus Guard 19201 | -6/Cetus | Murdered A7 19207 | -6/Cetus | Extracted ID and sensor layout for unrecognized location from A7's data core 19214 | -6/Cetus | Lost 3 allies 19215 | -6/Cetus | Found Prototype Device 19216 | -6/Cetus | Identified Exp. Thermal Shield 19230 | -6/Cetus | Discovered exit to Factory (range 15) 19243 | -6/Cetus | Met Revision 17 19341 | -6/Cetus | Found Prototype Protection 19341 | -6/Cetus | Identified Med. Regenerative Plating 19501 | -6/Cetus | Security sweep announced 19726 | -6/Cetus | Entered Factory 19726 | -5/Factory | Accompanied by 5 allies 19726 | -5/Factory | Evolved 2 slots: Power x1, Weapon x1 19727 | -5/Factory | Identified exit to Upper Caves 20108 | -5/Factory | Fabricated H-66 Slayer (x2) 20177 | -5/Factory | Fabricated H-66 Slayer (x2) 20188 | -5/Factory | Build established: Scavenger-Gunner 20448 | -5/Factory | Garrison activated, responded to threat 20509 | -5/Factory | Cargo convoy interrupted 20550 | -5/Factory | Found Prototype Launcher 20550 | -5/Factory | Identified Ragnarok Missile Launcher 20560 | -5/Factory | Lost 7 allies 20563 | -5/Factory | Found Ragnarok Missile Launcher 20569 | -5/Factory | Found Corrupted Prototype Hackware 20626 | -5/Factory | First assault squad dispatched 20768 | -5/Factory | Scrapoid reinforcements arrived 20803 | -5/Factory | Lost 6 parts (1p2n1u2w) 20880 | -5/Factory | Found Scrap Suit 20886 | -5/Factory | Fabricated Rocket Array (x1) 20929 | -5/Factory | Fabricated Rocket Array (x1) 20946 | -5/Factory | Identified Exp. Hacking Suite 20956 | -5/Factory | Found Scrap Suit 20964 | -5/Factory | Fabricated Rocket Array? 21228 | -5/Factory | Build established: Scavenger-Scrapper 21559 | -5/Factory | Found PL-3XN's Ring of Power 21715 | -5/Factory | Sucked down chute 21715 | -5/Factory | Entered Waste 21730 | -5/Waste | EMP discharged 21777 | -5/Waste | Spotted C-40 Crusher 21784 | -5/Waste | Spotted C-40 Crusher 21796 | -5/Waste | Spotted C-40 Crusher 21830 | -5/Waste | EMP discharged 21836 | -5/Waste | Crushed by Compactor (1 part destroyed, 1 dropped) 21841 | -5/Waste | Spotted C-40 Crusher 21845 | -5/Waste | Spotted C-40 Crusher 21853 | -5/Waste | Crushed by Compactor (1 part destroyed) 21861 | -5/Waste | Spotted C-40 Crusher 21900 | -5/Waste | Discovered new exit (range 12) 21908 | -5/Waste | Found Broken Fusion Bomb Launcher 21911 | -5/Waste | Entered Factory 21916 | -5/Factory | Identified exit to DSF 21916 | -5/Factory | Entered DSF 21938 | -5/DSF | Additional patrols routed to DSF 22088 | -5/DSF | Discovered new exit (range 11) 22097 | -5/DSF | Entered Factory 22097 | -4/Factory | Evolved 2 slots: Utility x2 22113 | -4/Factory | Discovered new exit (range 12) 22124 | -4/Factory | Identified exit to Research 22181 | -4/Factory | Discovered exit to Research (range 2) 22578 | -4/Factory | Build established: Scavenger-Mutant 22966 | -4/Factory | Repaired Imp. Carbon-fiber Leg 22989 | -4/Factory | Repaired Imp. Carbon-fiber Leg 23053 | -4/Factory | Repaired Corrupted Exp. Hacking Suite 23092 | -4/Factory | Repaired Flexi-carbon Leg 23490 | -4/Factory | Fabricated H-66 Slayer (x2) 23567 | -4/Factory | Fabricated H-66 Slayer (x2) 23936 | -4/Factory | Sucked down chute 23936 | -4/Factory | Entered Waste 23951 | -4/Waste | EMP discharged 23953 | -4/Waste | Spotted C-40 Crusher 23964 | -4/Waste | Spotted C-40 Crusher 23966 | -4/Waste | Destroyed C-40 Crusher 23971 | -4/Waste | 3 allies followed down the chute 23973 | -4/Waste | Destroyed C-40 Crusher 23984 | -4/Waste | Found Damper Plating 24012 | -4/Waste | Found Damper Plating 24027 | -4/Waste | Found Damper Plating 24050 | -4/Waste | Spotted C-40 Crusher 24051 | -4/Waste | EMP discharged 24053 | -4/Waste | Spotted C-40 Crusher 24067 | -4/Waste | Allies destroyed C-40 Crusher 24080 | -4/Waste | Spotted C-40 Crusher 24114 | -4/Waste | Crushed by Compactor (0 parts destroyed, 1 dropped) 24117 | -4/Waste | Crushed by Compactor (0 parts destroyed, 1 dropped) 24120 | -4/Waste | Crushed by Compactor (1 part destroyed) 24121 | -4/Waste | Lost 3 allies 24122 | -4/Waste | Destroyed C-40 Crusher 24151 | -4/Waste | EMP discharged 24161 | -4/Waste | Spotted C-40 Crusher 24187 | -4/Waste | Destroyed C-40 Crusher 24192 | -4/Waste | Found Damper Plating 24251 | -4/Waste | EMP discharged 24252 | -4/Waste | Discovered new exit (range 10) 24277 | -4/Waste | Entered Factory 24418 | -4/Factory | Build established: Scavenger-Tank 24499 | -4/Factory | Spotted B-86 Titan 24520 | -4/Factory | Destroyed B-86 Titan 24657 | -4/Factory | Fabricated Machine Rigger (x1) 24829 | -4/Factory | Scrapoids reinforcements arrived? 24969 | -4/Factory | Identified exit to Upper Caves 25056 | -4/Factory | Lost 4 allies 25217 | -4/Factory | Found Scrap Suit 25277 | -4/Factory | First assault squad dispatched 25300 | -4/Factory | Found Scrap Suit 25461 | -4/Factory | Scrapoid reinforcements arrived 25511 | -4/Factory | Found Scrap Suit 25515 | -4/Factory | Found Scrap Suit 25527 | -4/Factory | Discovered exit to Research (range 19) 25531 | -4/Factory | Lost 5 allies 25553 | -4/Factory | Build established: Scavenger-Scrapper 25605 | -4/Factory | Destroyed 7 combat bots 25754 | -4/Factory | Entered Upper Caves 25756 | -4/Upper Caves | UFD Scientist delivered a prototype 25760 | -4/Upper Caves | Found Prototype Protection 25783 | -4/Upper Caves | Found Alien Artifact 25783 | -4/Upper Caves | Identified Dimensional Node Initializer 25783 | -4/Upper Caves | Initialized slip node 25879 | -4/Upper Caves | Identified exit to Upper Caves 25953 | -4/Upper Caves | Learned location of Testing (-3) 25958 | -4/Upper Caves | Attracted the attention of an 0b10 base 25969 | -4/Upper Caves | Attracted the attention of an 0b10 checkpoint 26034 | -4/Upper Caves | Destroyed 12 combat bots 26035 | -4/Upper Caves | Learned location of 1 exit from Factory 26415 | -4/Upper Caves | Entered another Upper Caves area 26419 | -4/Upper Caves | Core integrity fell below 50% 26445 | -4/Upper Caves | Attracted the attention of an 0b10 checkpoint 26462 | -4/Upper Caves | Encountered a Warlord checkpoint 26488 | -4/Upper Caves | Discovered exit to Research (range 12) 26764 | -4/Upper Caves | Learned location of 1 exit from Research 26839 | -4/Upper Caves | Discovered new exit (range 8) 26854 | -4/Upper Caves | Entered Warlord 26855 | -4/Warlord | Identified exit to Proximity Caves 26896 | -4/Warlord | System corruption cleaned by Quarantine Array 27009 | -4/Warlord | Found Prototype Device 27011 | -4/Warlord | Found Prototype Device 27060 | -4/Warlord | Rebuked by Warlord 27085 | -4/Warlord | Warlord's base attacked by MAIN.C 27096 | -4/Warlord | Found Spectral Analyzer 27102 | -4/Warlord | Found Prototype Processor 27103 | -4/Warlord | Identified Exp. Targeting Computer 27107 | -4/Warlord | Found Prototype Reactor 27107 | -4/Warlord | Identified Vortex Chain Reactor 27116 | -4/Warlord | Identified Minesniffer Drone Bay 27120 | -4/Warlord | Found Prototype Device 27120 | -4/Warlord | Identified Thermal Barrier 27373 | -4/Warlord | Met EX-DEC 27377 | -4/Warlord | Found Prototype Energy Gun 27377 | -4/Warlord | Identified Vortex Rail 27381 | -4/Warlord | Found Vortex Rail 27385 | -4/Warlord | Found Vortex Rail 27387 | -4/Warlord | Found Vortex Rail 27435 | -4/Warlord | Warlord forces counterattacked 27462 | -4/Warlord | Spotted Striker 27503 | -4/Warlord | Spotted B-90 Cyclops 27506 | -4/Warlord | Lost 3 allies 27508 | -4/Warlord | Spotted Striker 27517 | -4/Warlord | Allies destroyed Striker 27528 | -4/Warlord | Spotted Executioner 27544 | -4/Warlord | Allies destroyed Executioner 27565 | -4/Warlord | Destroyed 9 combat bots 27570 | -4/Warlord | Lost 7 allies 27580 | -4/Warlord | Found Prototype Processor 27580 | -4/Warlord | Identified Exp. Core Analyzer 27585 | -4/Warlord | Spotted Executioner 27586 | -4/Warlord | Destroyed Executioner 27586 | -4/Warlord | Destroyed Executioner 27612 | -4/Warlord | Destroyed 10 combat bots 27623 | -4/Warlord | Lost 4 allies 27673 | -4/Warlord | Entered Proximity Caves 27673 | -3/Proximity Caves | Accompanied by 4 allies 27726 | -3/Proximity Caves | Acquired the password to a Derelict Tinkerer's latest research 27793 | -3/Proximity Caves | Spotted B-86 Titan 27807 | -3/Proximity Caves | Allies destroyed B-86 Titan 27819 | -3/Proximity Caves | Caught by Unaware searching for contraband prototypes 27820 | -3/Proximity Caves | Caught by Unaware searching for contraband prototypes 27820 | -3/Proximity Caves | P-70 Sage assimilated allied Assassin 7a 27870 | -3/Proximity Caves | Lost 3 allies 27872 | -3/Proximity Caves | Destroyed 7 combat bots 28067 | -3/Proximity Caves | Received a Behemoth hack from an annoying Tinkerer 28170 | -3/Proximity Caves | Entered Research 28170 | -3/Research | Evolved 2 slots: Power x1, Utility x1 28171 | -3/Research | Identified exit to Testing 28171 | -3/Research | Identified exit to Armory 28171 | -3/Research | Identified exit to Research 28296 | -3/Research | Identified Enh. Scrap Shield 28370 | -3/Research | Revision forces began assault on 0b10 28388 | -3/Research | Destroyed 13 combat bots 28394 | -3/Research | Met up with Revision 17++ 28591 | -3/Research | Build established: Scavenger-Gunner 28613 | -3/Research | Spotted B-86 Titan 28674 | -3/Research | Lost 3 parts (2p1w) 28691 | -3/Research | Scrapoid reinforcements arrived 28742 | -3/Research | Lost 5 allies 28773 | -3/Research | Found Scrap Suit 28790 | -3/Research | Murdered 3 allies 28870 | -3/Research | Research terminal network offline 29021 | -3/Research | Scrapoid reinforcements arrived 29054 | -3/Research | Entered Testing 29054 | -3/Testing | Accompanied by 5 allies 29109 | -3/Testing | Found Scrap Suit 29114 | -3/Testing | Found Scrap Suit 29137 | -3/Testing | Garrison activated, responded to threat 29138 | -3/Testing | Build established: Scavenger-Scrapper 29205 | -3/Testing | Found Prototype Device 29205 | -3/Testing | Identified 2N-1CE's Frost Array 29802 | -3/Testing | Spotted Striker 29811 | -3/Testing | Found Prototype Launcher 29812 | -3/Testing | Identified Hellfire Missile Launcher 29828 | -3/Testing | Spotted Striker 29885 | -3/Testing | Spotted Alpha 7 29942 | -3/Testing | Destroyed Alpha 7 30007 | -3/Testing | Found Prototype Energy Cannon 30108 | -3/Testing | Found Prototype Energy Cannon 30108 | -3/Testing | Identified Cld. Nova Cannon 30304 | -3/Testing | First assault squad dispatched 30305 | -3/Testing | Repaired Ovr. Railgun 30307 | -3/Testing | Discovered exit to Research (range 9) 30349 | -3/Testing | Destroyed 8 combat bots 30361 | -3/Testing | Spotted PG-111LQV40PU 30620 | -3/Testing | Rewired YP-TDH(L) 30627 | -3/Testing | Rewired KE-C5O(L) 30630 | -3/Testing | Rewired G9-CQJ(L) 30632 | -3/Testing | Scanned by Researcher 30971 | -3/Testing | Allies destroyed PG-111LQV40PU 31027 | -3/Testing | Entered Research 31027 | -2/Research | Accompanied by 2 allies 31027 | -2/Research | Evolved 2 slots: Utility x1, Weapon x1 31311 | -2/Research | First assault squad dispatched 31315 | -2/Research | Discovered new exit (range 6) 31392 | -2/Research | Spotted B-90 Cyclops 31460 | -2/Research | Garrison activated, responded to threat 31512 | -2/Research | High security lockdown imminent 31592 | -2/Research | High security lockdown engaged 31692 | -2/Research | Entered Quarantine 31786 | -2/Quarantine | Found Alien Artifact 31808 | -2/Quarantine | Found Dimensional Node Initializer 31809 | -2/Quarantine | Initialized slip node 31893 | -2/Quarantine | Lost 6 parts (3p1n1u1w) 31911 | -2/Quarantine | Found Dimensional Node Initializer 31916 | -2/Quarantine | Found Alien Artifact 31918 | -2/Quarantine | Found Alien Artifact 31920 | -2/Quarantine | Found Alien Artifact 31952 | -2/Quarantine | Found Prototype Launcher 32038 | -2/Quarantine | Identified Point Singularity Launcher 32129 | -2/Quarantine | Found Alien Impact Weapon 32239 | -2/Quarantine | First assault squad dispatched 32293 | -2/Quarantine | Found Alien Artifact 32293 | -2/Quarantine | Identified Phase Armor 32295 | -2/Quarantine | Destroyed 8 combat bots 32301 | -2/Quarantine | Identified Hpw. Transdimensional Reconstructor (x3) 32301 | -2/Quarantine | Warped through subspace 32327 | -2/Quarantine | Garrison activated, responded to threat 32327 | -2/Quarantine | High security lockdown imminent 32361 | -2/Quarantine | Found Alien Artifact 32407 | -2/Quarantine | High security lockdown engaged 32418 | -2/Quarantine | Discovered new exit (range 5) 32434 | -2/Quarantine | Identified exit to Access 32435 | -2/Quarantine | Entered Access 32435 | -1/Access | Evolved 2 slots: Power x1, Propulsion x1 32777 | -1/Access | Spotted B-99 Colossus 32797 | -1/Access | Destroyed B-99 Colossus 32935 | -1/Access | First assault squad dispatched 32960 | -1/Access | Spotted B-99 Colossus 33090 | -1/Access | Destroyed 18 combat bots 33121 | -1/Access | Warped through subspace 33122 | -1/Access | Core integrity fell below 50% 33149 | -1/Access | Lost 4 parts (2n1u1w) 33394 | -1/Access | Build established: Generator-Gunner 33427 | -1/Access | Energy Cycler disabled 33448 | -1/Access | High security lockdown imminent 33528 | -1/Access | High security lockdown engaged 33565 | -1/Access | Garrison activated, responded to threat 33593 | -1/Access | Warped through subspace 33594 | -1/Access | Identified Subatomic Replicator 33594 | -1/Access | Identified Transdimensional Reconstructor 33594 | -1/Access | Warped through subspace 33623 | -1/Access | Lost 7 parts (2p1n4u) 33700 | -1/Access | Spotted Investigator 33707 | -1/Access | Destroyed Investigator 33715 | -1/Access | Crushed by falling debris 33715 | -1/Access | Core integrity fell below 20% 33724 | -1/Access | Identified Core Stripper 33746 | -1/Access | Destroyed 13 combat bots 33820 | -1/Access | Identified Potential Cannon 33836 | -1/Access | Destroyed by G-73 Enforcer with Heavy Laser Last Messages --------------- 33827_ Lgt. Quantum Reactor melted. 33827_ H-88 Terminator destroyed. 33827_ A-15 Conveyor calls for reinforcements. 33827_ ALERT: Hostile activity reported, dispatching reinforcements to area. 33827_ K-01 Serf collects debris. 33830_ Destroyed Lgt. Quantum Reactor. 33830_ Destroyed Hvy. Laser. 33830_ Wheel melted. 33830_ K-01 Serf destroyed. 33834_ Ovr. Huge Scrapsphere repairs itself (+7). 33834_ Acquired 16 matter. 33834_ C-30 ARC bursts open, deploying its payload. 33834_ G-73 Enforcer unfolds itself. 33834_ L-61 Swordsman unfolds itself. 33834_ G-73 Enforcer unfolds itself. 33834_ L-61 Swordsman unfolds itself. 33834_ M-36 Artificer unfolds itself. Map ----- +----------------------------------------------------+ | ??????????####### # # # | | ????????????????# # # + | | ????????????????# # "" # "" # | | ????????????????# # "" "" # | | ??????????####### # """""" " " # | | ??????????# #! """""" " # | | ??????????# # "" # | | ??????????# # "" # | | ??????????# + # | | ??????????# # # | | ??????????# ########### # # ####### | | ########### # """" + | | # ""R"" ###########+## | | # "" "" #???????? | | # #?????? | | # #???? | | C A# #??# | | ; [ #??# | | g ;;;####+##+########??# ! | | +########## mg g #??????# | | ??????????# l l #??????# """"T" | | ??????????# #??????# """"""" | | ??????????# % = #??????########### | | ??????????# ! [ #????????????????? | | ??????????# [ #????????????????? | | ??????????# [@ #????????????????? | | ??????????##########;;;;; #????????????????? | | ???????????????????## ; #????????????????? | | ????????????????????##### #????????????????? | | ????????????????????????# +????????????????? | | ????????????????????????# #????????????????? | | ????????????????????????# #????????????????? | | ????????????????????????# * #????????????????? | | ???????????????????????? % #????????????????? | | ???????????????????????? #????????????????? | | ???????????????????????? #????????????????? | | ???????????????????????? #????????????????? | | ??????????????????????? #????????????????? | | ??????????????????????? #????????????????? | | ??????????????????????? #????????????????? | | ???????????????????????#####+####????????????????? | | ???????????????????????????? ????????????????????? | | ???????????????????????????? ????????????????????? | | ?????????????????????????????????????????????????? | | ?????????????????????????????????????????????????? | | ?????????????????????????????????????????????????? | | ?????????????????????????????????????????????????? | | ?????????????????????????????????????????????????? | | ?????????????????????????????????????????????????? | | ?????????????????????????????????????????????????? | +----------------------------------------------------+ Best States ------------- Heat Dissipation 180 Coolant Potential 100 Energy Generation 85 Energy Capacity 1440 Matter Stores 300 Matter Capacity 600 Sight Range 24 Terrain Scan Range 30 Terrain Scan Density 110 Additional Mass Support 16 EM Shielding 2 Corruption Containment 8 Corruption Block 30 Armor Coverage 3200 Resistance: KI 45 Resistance: TH 70 Resistance: EX 20 Resistance: EM 100 Resistance: I 20 Resistance: S 20 Resistance: P 20 Core Shielding 30 Point Defense Rating 160 Evasion (%) 55 Targeting Accuracy 20 Melee Accuracy 5 Core Analysis 8 Recoil Reduction 6 Matter Filtering 30 Energy Filtering 30 Salvage Targeting 4 Offensive Hacking 30 Defensive Hacking 24 Authchip Count 9 Item Schematics ----------------- Hcp. Storage Unit | -10/Materials | Hacked Battle Rifle | -9/Recycling | Extrapolated Mak. Light Armor Plating | -9/Recycling | Extrapolated Spread Laser | -9/Recycling | Hacked Airjet | -9/Recycling | Hacked Imp. Treads | -9/Recycling | Hacked Barrage Gun | -9/Recycling | Extrapolated Hvy. Battle Rifle | -9/Recycling | Extrapolated Spk. Treads | -9/Scraptown | Extrapolated Machine Rigger | -9/Scraptown | Extrapolated Mak. Leg | -9/Scraptown | Extrapolated Mak. Terrain Scanner | -9/Scraptown | Extrapolated 0b10 Decoder Chip [Generic] | -9/Scraptown | Extrapolated Mak. Coolant Network | -9/Scraptown | Extrapolated 0b10 Decoder Chip [Scout] | -9/Scraptown | Extrapolated 0b10 Decoder Chip [Skirmisher] | -9/Scraptown | Extrapolated Mak. Targeting Computer | -9/Scraptown | Extrapolated Structural Scanner | -9/Scraptown | Extrapolated Tactical Coordination Suite | -6/Factory | Extrapolated Myomer Leg | -6/Factory | Scanalyzed Rocket Launcher | -6/Factory | Scanalyzed Hvy. Beamcaster | -6/Factory | Extrapolated Med. Armor Plating | -6/Factory | Scanalyzed Mak. Terrain Scan Processor | -6/Factory | Extrapolated Mak. System Shield | -6/Factory | Extrapolated Beamcaster | -6/Factory | Extrapolated Bore Cannon | -6/Factory | Extrapolated Mak. System Restoration Module | -6/Factory | Extrapolated Mak. Medium Armor Plating | -6/Factory | Extrapolated Mak. Power Source | -6/Factory | Extrapolated Mak. Ablative Armor | -6/Factory | Extrapolated Multitool | -6/Factory | Extrapolated Arm. Huge Wheel | -6/Factory | Hacked Spk. Medium Treads | -6/Factory | Extrapolated Mak. Trap Scanner | -6/Factory | Extrapolated 0b10 Decoder Chip [Looter] | -6/Factory | Extrapolated Mak. Core Shielding | -6/Extension | Extrapolated Mak. Weapon Shielding | -6/Extension | Extrapolated Mak. Hacking Suite | -6/Extension | Extrapolated Enh. Flamer | -6/Extension | Extrapolated Energy Deflector | -6/Extension | Extrapolated Med. Reactive Plating | -6/Extension | Hacked Rocket Array | -6/Extension | Hacked Mak. Sensor Array | -6/Cetus | Extrapolated Mak. ECM Suite | -6/Cetus | Extrapolated Mak. Thermal Plating | -6/Cetus | Extrapolated Humpback | -5/Factory | Extrapolated Micro-nuke Launcher | -4/Factory | Scanalyzed Imp. Phase Shifter | -4/Factory | Scanalyzed Exp. Hacking Suite | -4/Factory | Scanalyzed Exp. Terrain Scan Processor | -3/Testing | Archive Adv. Variable Charge Gun | -3/Testing | Archive Adv. Remote Shield | -3/Testing | Archive Robot Schematics ------------------ M-13 Machinist | -10/Materials | Hacked O-16 Technician | -10/Materials | Hacked H-66 Slayer | -6/Extension | Hacked M-28 Smith | -6/Extension | Hacked P-60 Hacker | -6/Extension | Hacked A-02 Transporter | -3/Testing | Archive Fabricated ------------ 0b10 Decoder Chip [Generic] | x2 | -6/Factory | Authchip M-13 Machinist | x1 | -6/Factory | Authchip H-66 Slayer | x2 | -5/Factory | Authchip H-66 Slayer | x2 | -5/Factory | Authchip Rocket Array | x1 | -5/Factory | Authchip Rocket Array | x1 | -5/Factory | Authchip Rocket Array | x1 | -5/Factory | Authchip H-66 Slayer | x2 | -4/Factory | Authchip H-66 Slayer | x2 | -4/Factory | Authchip Machine Rigger | x1 | -4/Factory Alien Tech Used ----------------- Dimensional Node Initializer Phase Armor High-powered Transdimensional Reconstructor Subatomic Replicator Transdimensional Reconstructor Core Stripper Achievements -------------- None Challenges ------------ None Game ------ Seed AntigravWarlordCorpse Manual? 0 Play Time 05:19:03 Cumulative 616.0 hours Start 2024.08.17 @ 22:20:20 End 2024.08.18 @ 03:41:00 Sessions 1 Manual Loads 0 Difficulty Adventurer Special Mode None Game No. 126 Rogue 0 Adventurer 126 Explorer 0 Win Type - Total 7 Types 4/0/1/2/0/0/0/0/0 Lore% 74 Gallery% 82 Achievement% 71 Wizard Run 0 Options --------- Layout 2 ASCII 0 Keyboard 0 Movement Mouse Keybinds 0 Fullscreen 1 Font 24/Smallcaps Map View 50x49 Zoom Use 0% Tactical HUD 1 Map Filters NONE Filters NONE Steam 1 RUN: 195b1595-cd6c-4b88-8c67-4b3f4ddb319a